Cogmind - Beta 15 @@@ ROGUE MODE // 2025.08.16 @ 02:10:06 Player: shapeshifter Result: Self-destructed Performance ------------- Evolutions (5) 2500 Regions Visited (13) 2600 Robots Destroyed (92) 460 Value Destroyed (3779) 3779 Prototype IDs (41) 820 Alien Tech Used (1) 200 Bonus (1403) 1403 TOTAL SCORE: 11762 Bonus ------- High Alert Combat Kills 227 Follower Combat Kills 76 Entered DSFs 500 Aligned with FarCom 300 Met Data Miner 300 Cogmind --------- Core Integrity 439/1000 Matter 68/300 Energy 350/350 System Corruption 11% Temperature Cool (0) Movement Walking (330) Ox3 Location -5/Factory Parts ------- > --- POWER (2) -------- (None) > --- PROPULSION (6) --- Potential Leg Potential Leg > --- UTILITY (7) ------ Advanced Heat Sink Huge Storage Unit High-capacity Battery Advanced Signal Interpreter Improved Salvage Targeting Computer > --- WEAPON (3) ------- Long-range Proton Cannon > --- INVENTORY (25) --- Light Nuclear Core Advanced Heat Sink High-capacity Storage Unit Energy Filter Particle Charger Particle Charger Advanced ECM Suite Medium Reactive Plating Improved Hardlight Generator Force Field Remote Shield Remote Shield Hacking Suite Component Analysis Suite Improved Recalibrator Heavy Laser Heavy Laser Heavy Particle Cannon Heavy Ion Cannon Remote Datajack Improved Remote Datajack Spear Peak State ------------ > --- POWER ------------ Light Nuclear Core Light Nuclear Core > --- PROPULSION ------- Carbon-fiber Leg Carbon-fiber Leg Carbon-fiber Leg Flexi-carbon Leg Potential Leg Potential Leg > --- UTILITY ---------- Advanced Heat Sink Huge Storage Unit High-capacity Battery Advanced Signal Interpreter Improved Salvage Targeting Computer Improved Focal Shield > --- WEAPON ----------- Heavy Machine Gun Enhanced Gauss Cannon Powered Hammer > --- INVENTORY -------- Light Nuclear Core Advanced Heat Sink High-capacity Storage Unit Energy Filter Particle Charger Particle Charger Advanced ECM Suite Medium Reactive Plating Improved Hardlight Generator Force Field Remote Shield Remote Shield Hacking Suite Component Analysis Suite Improved Recalibrator Splice Drone Bay Heavy Laser Heavy Laser Heavy Particle Cannon Heavy Ion Cannon Heavy Machine Gun Remote Datajack Spear [Rating: 86] Favorites ----------- Power Light Nuclear Core Engine Ion Engine Power Core Light Nuclear Core Propulsion Advanced Treads Treads Advanced Treads Leg Potential Leg Wheel Wheel Utility Hacking Suite Device Improved Heat Sink Storage Huge Storage Unit Processor Signal Interpreter Hackware Hacking Suite Protection Hardened Medium Armor Plating Weapon Lightning Gun Energy Gun Lightning Gun Energy Cannon Heavy Particle Cannon Ballistic Gun Assault Rifle Ballistic Cannon Enhanced Gauss Cannon Launcher Missile Launcher Special Weapon Remote Datajack Impact Weapon Powered Hammer Build | -11 -10 -10 -10 -9 -8 -7 -7 -7 -7 -6 -6 -6 -5 ------- Run | Yrd Mat Min Exi Min Mat Fac Low Low Dat Pro Fac DSF Fac Slots Evolved 10 | . . . . . 4 2 . . . . 2 . 2 Power 1 | . . . . . . . . . . . . . 1 Propulsion 4 | . . . . . 2 . . . . . 1 . 1 Utility 5 | . . . . . 2 2 . . . . 1 . . Weapon . | . . . . . . . . . . . . . . Parts Attached 103 | 7 2 . 1 2 28 18 1 11 . 2 4 11 16 Power 10 | 1 . . . . 2 2 . 2 . . . 1 2 Engine 4 | 1 . . . . 1 . . 1 . . . 1 . Core 6 | . . . . . 1 2 . 1 . . . . 2 Reactor . | . . . . . . . . . . . . . . Propulsion 27 | 2 . . . 2 8 3 . 3 . . . 4 5 Treads 16 | 2 . . . . 8 3 . 3 . . . . . Leg 9 | . . . . . . . . . . . . 4 5 Wheel 2 | . . . . 2 . . . . . . . . . Hover . | . . . . . . . . . . . . . . Flight . | . . . . . . . . . . . . . . Utility 34 | 2 2 . 1 . 10 5 . 3 . 1 3 3 4 Device 13 | 1 1 . . . 4 2 . 1 . . 1 1 2 Storage 5 | 1 1 . 1 . . 1 . . . . . 1 . Processor 8 | . . . . . 3 2 . . . . 1 . 2 Hackware 1 | . . . . . 1 . . . . . . . . Protection 7 | . . . . . 2 . . 2 . 1 1 1 . Artifact . | . . . . . . . . . . . . . . Weapon 32 | 2 . . . . 8 8 1 3 . 1 1 3 5 Energy Gun 14 | . . . . . 8 4 . 2 . . . . . Energy Cannon 4 | . . . . . . 1 . 1 . . 1 . 1 Ballistic Gun 7 | 2 . . . . . 1 . . . 1 . . 3 Ballistic Cannon 1 | . . . . . . . . . . . . . 1 Launcher 4 | . . . . . . 1 . . . . . 3 . Special Weapon 1 | . . . . . . . 1 . . . . . . Impact Weapon 1 | . . . . . . 1 . . . . . . . Slashing Weapon . | . . . . . . . . . . . . . . Piercing Weapon . | . . . . . . . . . . . . . . Special Melee Weapon . | . . . . . . . . . . . . . . Unidentified Prototypes 7 | . . . . . 4 2 1 . . . . . . Corrupted Parts 4 | . . . . . . . . 4 . . . . . System Corruption 24 | . . . . . . . . 24 . . . . . Parts Lost 49 | . . . . . 7 2 . 11 . 1 . 9 19 Power 7 | . . . . . . . . 3 . . . . 4 Propulsion 17 | . . . . . 2 . . 4 . . . 4 7 Utility 10 | . . . . . 2 1 . 1 . . . 2 4 Weapon 15 | . . . . . 3 1 . 3 . 1 . 3 4 Highest Loss Streak 10 | . . . . . 3 1 . 7 . 1 . 4 10 To Critical Strikes . | . . . . . . . . . . . . . . Average Backups 19 | 4 10 15 15 16 18 22 24 22 24 21 24 22 22 Power . | . 1 1 1 1 . . 1 . . . . 1 . Propulsion 3 | 1 2 2 2 4 5 3 4 2 3 3 2 1 . Utility 11 | . 5 7 6 6 8 12 13 15 15 15 15 13 14 Weapon 4 | . 2 5 5 5 4 6 5 3 5 2 6 5 5 Tool/Special . | . . . . . . . . . . . . . . Unused Backups 41 | . 2 . 2 . 12 8 . 1 . . 2 . 14 Power 1 | . . . . . . . . . . . . . 1 Propulsion 2 | . . . . . 1 1 . . . . . . . Utility 22 | . 2 . 2 . 3 4 . 1 . . . . 10 Weapon 14 | . . . . . 8 2 . . . . 2 . 2 Tool/Special 2 | . . . . . . 1 . . . . . . 1 Average Slot Usage (%) 94 | . 100 100 100 100 89 99 99 96 78 98 98 85 76 Engine 5 | . 14 14 14 14 6 . . 2 7 7 6 5 2 Core 2 | . . . . . 2 6 7 3 . . . . 4 Treads 26 | . 28 28 28 . 34 30 28 26 28 27 31 21 2 Leg 1 | . . . . . . . . . . . . 4 20 Device 10 | . 14 14 14 14 5 14 14 10 7 7 10 14 9 Storage 9 | . 14 14 14 14 9 7 7 7 7 7 6 11 11 Processor 8 | . . . . . 6 14 14 14 14 14 7 6 8 Hackware 3 | . . . . . 3 7 7 7 7 7 6 . . Protection 2 | . . . . . 2 . . 3 7 7 11 7 2 Energy Gun 8 | . . . . . 16 11 13 12 . 12 2 . 1 Energy Cannon 1 | . . . . . . 2 . . . 6 9 7 . Ballistic Gun 6 | . 28 28 28 28 1 . . . . 1 2 . 4 Impact Weapon 1 | . . . . . . . 6 7 . . 2 . 4 Peak Build Rating 86 | 7 8 8 10 11 36 55 59 62 51 62 70 68 86 Average Rating 42 | 5 7 8 8 10 31 49 58 57 51 60 68 58 73 On Entrance 33 | . 7 8 8 10 11 36 55 59 51 51 60 66 47 Naked Turns . | . . . . . . . . . . . . . . Heaviest Build 143 | 14 29 29 49 49 66 98 98 116 105 119 143 139 114 Greatest Support 140 | 40 40 40 40 20 88 104 104 120 120 120 140 140 125 Greatest Overweight (x) 2 | . . . 1 2 2 1 . 1 . 1 1 2 1 Average Overweight (x) . | . . . . 2 . . . . . . . . . Largest Inventory Capacity 25 | 8 15 15 20 20 20 25 25 25 25 25 25 25 25 Average Capacity 21 | 7 14 15 15 20 20 23 25 25 25 25 25 25 25 Most Carried 25 | 6 15 15 16 20 20 25 25 25 24 23 25 25 25 Average Carried 20 | 4 10 15 15 18 19 23 24 22 24 21 24 22 22 Final Capacity 25 | 8 15 15 20 20 20 25 25 25 25 25 25 25 25 Final Carried 25 | 5 15 15 16 20 20 25 25 24 24 22 25 24 22 Class Distribution -------------------- 56% | Mutant 19% | Skirmisher 11% | Scavenger-Mutant 9% | Scavenger-Tank Dominant Class ---------------- Mutant | -10/Materials Mutant | -10/Mines Mutant | -10/Exiles Mutant | -9/Mines Mutant | -8/Materials Skirmisher | -7/Factory Mutant | -7/Lower Caves Mutant | -7/Lower Caves Scavenger-Mutant | -7/Data Miner Scavenger-Tank | -6/Proximity Caves Scavenger-Mutant | -6/Factory Mutant | -6/DSF Mutant | -5/Factory Resources | -11 -10 -10 -10 -9 -8 -7 -7 -7 -7 -6 -6 -6 -5 ----------- Run | Yrd Mat Min Exi Min Mat Fac Low Low Dat Pro Fac DSF Fac Matter Collected 2222 | 262 164 . . . 282 289 106 206 . 258 . 178 477 Remotely . | . . . . . . . . . . . . . . Salvage Created 4047 | 63 215 . . . 1727 562 . 206 . 359 . 316 599 Parts 205 | 9 12 . . . 79 32 . 15 . 16 . 11 31 Haulers Intercepted 4 | . 1 . . . 2 1 . . . . . . . Recyclers Shooed . | . . . . . . . . . . . . . . Parts Field Recycled . | . . . . . . . . . . . . . . Retrieved Matter . | . . . . . . . . . . . . . . Parts Self-Destructed 20 | . . . . . . . . 5 . 15 . . . Prevented 10 | . . . . . . . . 10 . . . . . Kills | -11 -10 -10 -10 -9 -8 -7 -7 -7 -7 -6 -6 -6 -5 ------- Run | Yrd Mat Min Exi Min Mat Fac Low Low Dat Pro Fac DSF Fac Combat Hostiles Destroyed 72 | . 4 . . . 23 9 . 5 . 9 . 9 13 Melee 1 | . . . . . . . . . . 1 . . . Guns 39 | . 4 . . . 17 3 . 3 . 2 . . 10 Cannons 12 | . . . . . . . . 1 . 6 . 3 2 AOE 14 | . . . . . 2 5 . . . . . 6 1 Classes Destroyed 18 | 1 2 . . . 6 2 . 2 . 2 . 2 1 Worker 1 | . . . . . 1 . . . . . . . . Builder 2 | . . . . . . 2 . . . . . . . Tunneler 4 | 3 . . . . . 1 . . . . . . . Hauler 4 | . 1 . . . 2 1 . . . . . . . Recycler 3 | . . . . . 2 1 . . . . . . . Operator 1 | . . . . . 1 . . . . . . . . Drone 1 | . . . . . . . . . . 1 . . . Watcher 5 | . . . . . 4 1 . . . . . . . Swarmer 12 | . . . . . . . . 3 . 4 . . 5 Grunt 37 | . 4 . . . 17 5 . . . 3 . 3 5 Brawler 1 | . . . . . . . . . . . . . 1 Duelist 2 | . . . . . . . . . . 1 . 1 . Sentry 6 | . . . . . 4 1 . . . . . 1 . Specialist 2 | . . . . . . . . . . . . 2 . Hunter 4 | . . . . . 2 1 . . . . . 1 . Programmer 5 | . . . . . . 2 . 1 . . . . 2 Heavy 1 | . . . . . . . . . . . . 1 . Behemoth 1 | . . . . . . . . 1 . . . . . Best Kill Streak 8 | 1 2 . . . 8 6 . 2 . 4 . 5 5 Combat Bots Only 6 | . 2 . . . 6 4 . 2 . 4 . 5 5 Max Kills in Single Turn 4 | 1 1 . . . 2 4 . 1 . 1 . 2 1 Gunslinging . | . . . . . . . . . . . . . . Exploded 2 | . . . . . 1 2 . . . . . 2 1 Melee 1 | . . . . . . . . . . 1 . . . Uniques/NPCs Destroyed . | . . . . . . . . . . . . . . Combat | -11 -10 -10 -10 -9 -8 -7 -7 -7 -7 -6 -6 -6 -5 -------- Run | Yrd Mat Min Exi Min Mat Fac Low Low Dat Pro Fac DSF Fac Hostile Shots Fired 734 | . 20 . . . 119 42 . 106 . 51 . 144 252 Missed 244 | . 7 . . . 38 15 . 42 . 16 . 55 71 Hits 490 | . 13 . . . 81 27 . 64 . 35 . 89 181 Melee 6 | . . . . . . . . . . 6 . . . Projectile 484 | . 13 . . . 81 27 . 64 . 29 . 89 181 Critical Strikes 20 | . . . . . 6 . . . . 2 . 3 9 Part Disruptions 2 | . . . . . . . . . . . . . 2 Damage Taken 8744 | . 188 . . . 1631 434 . 1377 . 732 . 1327 3055 Core 1007 | . 58 . . . 76 15 . 31 . 57 . 209 561 Absorbed by Shields 214 | . . . . . . . . . . . . 214 . Redirected to Shielding 106 | . . . . . . . . . . . . 32 74 Ignored by Resistances 429 | . . . . . . . . . . . . 105 324 Core Remaining (%) 84 | 100 . . . 76 86 . . . . 85 . 75 . Volleys Fired 289 | 10 24 . . . 81 20 2 37 . 34 1 28 52 Largest 3 | 2 2 . . . 2 2 1 2 . 3 2 3 2 Hottest 199 | 40 40 . . . 100 123 5 110 . 199 144 176 144 Shots Fired 530 | 20 48 . . . 164 35 2 52 . 81 2 31 95 Gun 430 | 20 48 . . . 164 27 . 38 . 56 1 . 76 Cannon 74 | . . . . . . 4 . 7 . 25 1 18 19 Launcher 24 | . . . . . . 4 . 7 . . . 13 . Special 2 | . . . . . . . 2 . . . . . . Kinetic 160 | 20 48 . . . . . . . . 2 . . 90 Thermal 86 | . . . . . . 4 . 7 . 51 2 18 4 Explosive 24 | . . . . . . 4 . 7 . . . 13 . Electromagnetic 258 | . . . . . 164 27 . 38 . 28 . . 1 Robot Hit Streak 18 | 2 15 . . . 18 7 7 14 . 7 . 9 12 Robot Miss Streak 10 | 3 3 . . . 3 4 1 3 . 10 . 2 7 Penetration Max . | . . . . . . . . . . . . . . Secondary Targets 7 | . . . . . 2 . . 1 . . . . 4 Max Gunslinging Chain 1 | . . . . . 1 . . 1 . . . . 1 Shots Hit Robots 340 | 9 32 . . . 126 22 1 34 . 33 . 25 58 Core Hits 186 | 6 14 . . . 65 20 . 10 . 15 . 29 27 Critical Kills 1 | . . . . . . 1 . . . . . . . Critical Parts Destroyed . | . . . . . . . . . . . . . . Critical Strikes 7 | . . . . . 1 4 . 1 . . . . 1 Meltdown 1 | . . . . . . 1 . . . . . . . Blast 1 | . . . . . . . . . . . . . 1 Corrupt 5 | . . . . . 1 3 . 1 . . . . . Melee Attacks 22 | . . . . . . 11 1 . . . 3 . 7 Impact 22 | . . . . . . 11 1 . . . 3 . 7 Slashing . | . . . . . . . . . . . . . . Piercing . | . . . . . . . . . . . . . . Sneak Attacks . | . . . . . . . . . . . . . . Combat Hostiles . | . . . . . . . . . . . . . . Follow-up Attacks . | . . . . . . . . . . . . . . Damage Inflicted 8982 | 93 337 . . . 2846 1124 . 781 . 836 . 1358 1607 Guns 5022 | 93 337 . . . 2402 266 . 374 . 483 . . 1067 Cannons 1386 | . . . . . . 92 . 93 . 350 . 381 470 Explosions 2571 | . . . . . 444 766 . 314 . . . 977 70 Melee . | . . . . . . . . . . . . . . Ramming 3 | . . . . . . . . . . 3 . . . Kinetic 1870 | 93 337 . . . . . . . . . . . 1440 Thermal 1976 | . . . . . 444 231 . 160 . 600 . 381 160 Explosive 1851 | . . . . . . 627 . 247 . . . 977 . Electromagnetic 3282 | . . . . . 2402 266 . 374 . 233 . . 7 Impact . | . . . . . . . . . . . . . . Slashing . | . . . . . . . . . . . . . . Piercing . | . . . . . . . . . . . . . . Highest Corruption 26 | . . . . . 1 1 1 26 26 26 . . 11 Average Corruption 7 | . . . . . 1 1 1 10 26 26 . . 1 Corruption Purged . | . . . . . . . . . . . . . . Corruption Blocked . | . . . . . . . . . . . . . . Effects 91 | . . . . . 15 . 4 19 8 43 . . 2 Message Errors 13 | . . . . . 4 . . 2 2 4 . . 1 Matter Fused 18 | . . . . . 3 . 1 7 2 5 . . . Heat Flow Errors 12 | . . . . . 1 . 1 3 2 5 . . . Energy Discharges 17 | . . . . . 3 . 1 2 1 10 . . . Parts Rejected 2 | . . . . . 1 . . . . . . . 1 Data Loss (minor) 7 | . . . . . . . . 2 1 4 . . . Data Loss (major) 8 | . . . . . . . 1 2 . 5 . . . Misfires 6 | . . . . . 2 . . 1 . 3 . . . Alerts 2 | . . . . . 1 . . . . 1 . . . Misdirections 1 | . . . . . . . . . . 1 . . . Weapon Failures 5 | . . . . . . . . . . 5 . . . Overload Shots . | . . . . . . . . . . . . . . Overflow Damage 121 | . . . . . 28 45 . . . 9 . . 39 Projectiles 9 | . . . . . . . . . . 9 . . . Explosions 112 | . . . . . 28 45 . . . . . . 39 Melee . | . . . . . . . . . . . . . . Knockbacks 6 | . . . . . . . . . . . . . 6 Impact . | . . . . . . . . . . . . . . Kinetic 5 | . . . . . . . . . . . . . 5 Secondary 1 | . . . . . . . . . . . . . 1 Self-Inflicted Damage 480 | . . . . . 146 52 . . . . . 82 200 Shots 11 | . . . . . 3 2 . . . . . 3 3 Rammed . | . . . . . . . . . . . . . . Targets Rammed 1 | . . . . . . . . . . 1 . . . Kicked . | . . . . . . . . . . . . . . Crushed 1 | . . . . . . . . . . 1 . . . Highest Temperature 459 | . 9 . . . 284 7 245 236 167 459 12 10 108 Average Temperature 83 | . 8 . . . 74 3 132 73 99 135 8 4 27 Received Heat Transfer 1478 | . 108 . . . 522 93 . 120 . 207 . 103 325 Effects 4 | . . . . . 1 . . . . 3 . . . Energy Bleed 2 | . . . . . 1 . . . . 1 . . . Interference 2 | . . . . . . . . . . 2 . . . Siege Activations . | . . . . . . . . . . . . . . Martial Activations . | . . . . . . . . . . . . . . Shielding Activations . | . . . . . . . . . . . . . . Robots Disrupted 1 | . . . . . . . . 1 . . . . . Combat Hostiles 1 | . . . . . . . . 1 . . . . . Robots Corrupted 7 | . . . . . 6 . . 1 . . . . . Combat Hostiles 5 | . . . . . 4 . . 1 . . . . . Parts Fried 14 | . . . . . 10 3 . . . 1 . . . Impact Corruptions . | . . . . . . . . . . . . . . Robots Melted 1 | . . . . . . 1 . . . . . . . Combat Hostiles 1 | . . . . . . 1 . . . . . . . Parts Melted 7 | . . . . . . 3 . 1 . 3 . . . Heat Transferred 2624 | . . . . . 500 248 . 161 . 999 . 518 198 Parts Sabotaged . | . . . . . . . . . . . . . . Parts Stolen . | . . . . . . . . . . . . . . Parts Stripped . | . . . . . . . . . . . . . . Power Chain Reactions 7 | . . . . . 4 2 . 1 . . . . . Alert | -11 -10 -10 -10 -9 -8 -7 -7 -7 -7 -6 -6 -6 -5 ------- Run | Yrd Mat Min Exi Min Mat Fac Low Low Dat Pro Fac DSF Fac Maximum Alert Level 3 | . . . . . 1 1 . . . . 3 3 2 Low Security (%) 73 | 100 100 100 . 100 93 93 . . . . . . . Level 1 12 | . . . . . 6 6 . . . . . . 67 Level 2 6 | . . . . . . . . . . . . 55 32 Level 3 7 | . . . . . . . . . . . 100 44 . Level 4 . | . . . . . . . . . . . . . . Level 5 . | . . . . . . . . . . . . . . High Security . | . . . . . . . . . . . . . . Max Security . | . . . . . . . . . . . . . . Sterilizations 1 | . . . . . . . . . . . . 1 . Peak Influence 931 | 5 118 4 . . 239 251 . . . . 931 742 495 Initial 931 | . . 4 . . . 102 . . . . 931 548 378 Average 159 | . 34 . . . 67 51 . . . . 862 649 359 Influence Increases 3584 | 15 165 . . . 811 563 . 130 . 200 922 264 514 Destroy 0b10 Robot/C 1460 | . 80 . . . 500 180 . 100 . 160 . 180 260 Destroy 0b10 Robot/NC 105 | 15 5 . . . 50 30 . . . 5 . . . Destroy Leader 318 | . 22 . . . 142 64 . 30 . 20 . 20 20 Allied During Kill 8 | . . . . . 8 . . . . . . . . Successful Hack 79 | . 13 . . . 20 42 . . . . 4 . . Disable Machine 315 | . . . . . 45 150 . . . . 15 . 105 Destroy Structure 264 | . . . . . 16 97 . . . . 3 64 84 Advance Influence 900 | . . . . . . . . . . . 900 . . Lose Combat Pursuer 135 | . 45 . . . 30 . . . . 15 . . 45 Influence Decreases 3236 | 15 152 13 . . 585 558 231 130 . 149 190 325 888 Entered New Map 819 | . . 9 . . . 124 87 . . . 20 235 344 Time Decay 1957 | 15 152 4 . . 481 418 144 100 . 139 170 . 334 Lost Part 402 | . . . . . 66 16 . 30 . 10 . 90 190 Lost Ally 58 | . . . . . 38 . . . . . . . 20 Squads Dispatched 17 | . . 1 . . 5 4 . . . . . 2 5 Investigation 4 | . . 1 . . 2 1 . . . . . . . Extermination 4 | . . . . . . 2 . . . . . . 2 Reinforcement 6 | . . . . . 2 1 . . . . . 2 1 Assault 1 | . . . . . . . . . . . . . 1 Garrison 2 | . . . . . 1 . . . . . . . 1 Intercept . | . . . . . . . . . . . . . . Searches Triggered . | . . . . . . . . . . . . . . Data Miner Redirects 1 | . . . . . . . . . . . . . 1 Construction Impeded . | . . . . . . . . . . . . . . Haulers Reinforced . | . . . . . . . . . . . . . . Active Scanning Responses . | . . . . . . . . . . . . . . Cargo Convoy Interrupts 1 | . . . . . . . . . . . . . 1 Stealth | -11 -10 -10 -10 -9 -8 -7 -7 -7 -7 -6 -6 -6 -5 --------- Run | Yrd Mat Min Exi Min Mat Fac Low Low Dat Pro Fac DSF Fac Distress Signals 3 | . 1 . . . 1 1 . . . . . . . Communications Jammed . | . . . . . . . . . . . . . . Distress Signals . | . . . . . . . . . . . . . . Times Spotted 128 | . 9 . . . 37 12 . 6 . 21 . 12 31 Peak Tracking Total 13 | . 6 . . . 5 4 . 3 . 5 . 6 13 Tactical Retreats 7 | . 2 . . . 2 . . . . 1 . . 2 Traps | -11 -10 -10 -10 -9 -8 -7 -7 -7 -7 -6 -6 -6 -5 ------- Run | Yrd Mat Min Exi Min Mat Fac Low Low Dat Pro Fac DSF Fac Traps Triggered 3 | . . . . . . 2 . . . . . . 1 Indirectly . | . . . . . . . . . . . . . . Trap Hack Attempts . | . . . . . . . . . . . . . . Triggered . | . . . . . . . . . . . . . . Disarmed . | . . . . . . . . . . . . . . Reprogrammed . | . . . . . . . . . . . . . . Reused . | . . . . . . . . . . . . . . Traps Extracted . | . . . . . . . . . . . . . . Installed 1 | . . . . . 1 . . . . . . . . Triggered . | . . . . . . . . . . . . . . Most Traps Carried 3 | . . . . 3 3 . . . . . . . . Machines | -11 -10 -10 -10 -9 -8 -7 -7 -7 -7 -6 -6 -6 -5 ---------- Run | Yrd Mat Min Exi Min Mat Fac Low Low Dat Pro Fac DSF Fac Machines Disabled 21 | . . . . . 3 10 . . . . 1 . 7 Max in Single Turn 5 | . . . . . 1 4 . . . . 1 . 5 Machines Repaired . | . . . . . . . . . . . . . . Machines Dismantled . | . . . . . . . . . . . . . . Machines Sabotaged . | . . . . . . . . . . . . . . Overloaded Fab Kills . | . . . . . . . . . . . . . . Hacking | -11 -10 -10 -10 -9 -8 -7 -7 -7 -7 -6 -6 -6 -5 --------- Run | Yrd Mat Min Exi Min Mat Fac Low Low Dat Pro Fac DSF Fac Machines Accessed 35 | . 3 1 2 1 8 10 . 1 4 1 3 . 1 Terminals 14 | . 1 1 . . 5 5 . . . 1 1 . . Fabricators 3 | . . . . . . 2 . . . . . . 1 Repair Stations 1 | . . . . . 1 . . . . . . . . Recycling Units 7 | . 2 . . . 1 2 . . . . 2 . . Scanalyzers . | . . . . . . . . . . . . . . Garrison Access 2 | . . . . . 1 1 . . . . . . . Total Hacks 102 | . 12 4 2 1 23 21 . 1 31 1 4 . 2 Successful 69 | . 6 1 2 1 10 12 . 1 31 1 3 . 1 Failed 33 | . 6 3 . . 13 9 . . . . 1 . 1 Catastrophic 4 | . . 1 . . 2 1 . . . . . . . Database Lockouts . | . . . . . . . . . . . . . . Manual 26 | . 6 4 1 . 8 7 . . . . . . . Terminals 38 | . 6 4 . . 13 13 . . . 1 1 . . Fabricators 5 | . . . . . . 3 . . . . . . 2 Repair Stations 2 | . . . . . 2 . . . . . . . . Recycling Units 18 | . 6 . . . 6 3 . . . . 3 . . Scanalyzers . | . . . . . . . . . . . . . . Garrison Access 4 | . . . . . 2 2 . . . . . . . Terminal Hacks 46 | . 1 . 2 1 4 4 . 1 31 1 1 . . Record 14 | . . . 1 . . 1 . . 11 1 . . . Part Schematic 12 | . . . . . . . . . 12 . . . . Robot Schematic 5 | . . . . . . . . . 5 . . . . Prototype ID Bank 4 | . . . . . 1 . . . 3 . . . . Open Door 2 | . . . . 1 . . . 1 . . . . . Open DSF 1 | . . . . . . . . . . . 1 . . Branch Access Points 2 | . 1 . . . 1 . . . . . . . . Alert Level 2 | . . . . . . 2 . . . . . . . Recall Investigation 1 | . . . . . 1 . . . . . . . . Hauler Manifests 1 | . . . . . 1 . . . . . . . . Zone Layout 1 | . . . . . . 1 . . . . . . . Proto ID Catalog 1 | . . . 1 . . . . . . . . . . Fabricator Hacks 3 | . . . . . . 2 . . . . . . 1 Network Status 1 | . . . . . . 1 . . . . . . . Load Schematic 1 | . . . . . . . . . . . . . 1 Build 1 | . . . . . . 1 . . . . . . . Repair Station Hacks . | . . . . . . . . . . . . . . Recycling Unit Hacks 12 | . 4 . . . 3 3 . . . . 2 . . Process 1 | . . . . . 1 . . . . . . . . Report Inventory 7 | . 2 . . . 1 2 . . . . 2 . . Retrieve Matter 1 | . . . . . 1 . . . . . . . . Retrieve Components 3 | . 2 . . . . 1 . . . . . . . Scanalyzer . | . . . . . . . . . . . . . . Garrison Access Hacks . | . . . . . . . . . . . . . . Unauthorized Hacks 8 | . 1 1 . . 3 3 . . . . . . . Terminals 7 | . 1 1 . . 2 3 . . . . . . . Botnet 7 | . 1 1 . . 2 3 . . . . . . . Fabricators . | . . . . . . . . . . . . . . Repair Stations 1 | . . . . . 1 . . . . . . . . Mechanics 1 | . . . . . 1 . . . . . . . . Recycling Units . | . . . . . . . . . . . . . . Scanalyzers . | . . . . . . . . . . . . . . Garrison Access . | . . . . . . . . . . . . . . Data Cores Recovered . | . . . . . . . . . . . . . . Used . | . . . . . . . . . . . . . . Hacking Detections 21 | . 3 1 . . 7 8 . . . . 1 . 1 Full Trace Events 4 | . . 1 . . 3 . . . . . . . . Feedback Events 1 | . . . . . 1 . . . . . . . . Corruption 1 | . . . . . 1 . . . . . . . . Feedback Blocked . | . . . . . . . . . . . . . . Robot Schematics Acquired 5 | . . . . . . . . . 5 . . . . Robots Built . | . . . . . . . . . . . . . . Authchips . | . . . . . . . . . . . . . . Time . | . . . . . . . . . . . . . . Total Robot Build Rating . | . . . . . . . . . . . . . . Part Schematics Acquired 12 | . . . . . . . . . 12 . . . . Parts Built 2 | . . . . . . 2 . . . . . . . Authchips . | . . . . . . . . . . . . . . Time 39 | . . . . . . 39 . . . . . . . Total Part Build Rating 14 | . . . . . . 14 . . . . . . . Parts Repaired . | . . . . . . . . . . . . . . Time . | . . . . . . . . . . . . . . Parts Recycled . | . . . . . . . . . . . . . . Recycled Matter 84 | . . . . . 84 . . . . . . . . Retrieved Matter 84 | . . . . . 84 . . . . . . . . Retrieved Components 13 | . 11 . . . . 2 . . . . . . . Parts Scanalyzed . | . . . . . . . . . . . . . . Part Schematics Acquired . | . . . . . . . . . . . . . . Parts Damaged . | . . . . . . . . . . . . . . Bothacking | -11 -10 -10 -10 -9 -8 -7 -7 -7 -7 -6 -6 -6 -5 ------------ Run | Yrd Mat Min Exi Min Mat Fac Low Low Dat Pro Fac DSF Fac Used RIF Installer . | . . . . . . . . . . . . . . Robots Hacked 2 | . . . . . . . 2 . . . . . . Non-combat 2 | . . . . . . . 2 . . . . . . Combat . | . . . . . . . . . . . . . . Robot Hacks Applied 2 | . . . . . . . 2 . . . . . . parse_system 2 | . . . . . . . 2 . . . . . . Relay Couplers Released . | . . . . . . . . . . . . . . Fabnet Peak Effective % . | . . . . . . . . . . . . . . Robots Rewired . | . . . . . . . . . . . . . . Allies Hacked . | . . . . . . . . . . . . . . Hacks Repelled . | . . . . . . . . . . . . . . Allies | -11 -10 -10 -10 -9 -8 -7 -7 -7 -7 -6 -6 -6 -5 -------- Run | Yrd Mat Min Exi Min Mat Fac Low Low Dat Pro Fac DSF Fac Total Allies 3 | . . . . 3 . . . . . . . . . Largest Group 3 | . . . . 3 3 . . . . . . . . Highest-Rated Group 40 | . . . . 40 40 . . . . . . . . Highest-Rated Ally 16 | . . . . 16 16 . . . . . . . . Initial Warlord ECA Mod 9 | . . . . . . . . . . . . . 9 Total Orders . | . . . . . . . . . . . . . . Ally Attacks 22 | . . . . . 17 . . . . . . . 5 Total Damage 229 | . . . . . 194 . . . . . . . 35 Kills 2 | . . . . . 2 . . . . . . . . Allies Corrupted . | . . . . . . . . . . . . . . Allies Melted . | . . . . . . . . . . . . . . Intel | -11 -10 -10 -10 -9 -8 -7 -7 -7 -7 -6 -6 -6 -5 ------- Run | Yrd Mat Min Exi Min Mat Fac Low Low Dat Pro Fac DSF Fac Active Infowar (turns) 5307 | 63 672 223 491 260 532 1383 580 355 . . 251 248 249 Sensors 2 | . . . . . . . . . . . 2 . . Terrain 2528 | . . . . . 210 1383 580 355 . . . . . Structural 941 | . . . . . 193 . . . . . 251 248 249 Seismic 1838 | 63 672 223 491 260 129 . . . . . . . . Robot Analysis Total . | . . . . . . . . . . . . . . Derelict Logs Recovered 6 | . . 1 . 1 . . 1 1 . 2 . . . Drone Launches 6 | . . . . . . . . . . . . . 6 Drone Recoveries 4 | . . . . . . . . . . . . . 4 Exploration | -11 -10 -10 -10 -9 -8 -7 -7 -7 -7 -6 -6 -6 -5 ------------- Run | Yrd Mat Min Exi Min Mat Fac Low Low Dat Pro Fac DSF Fac Turns Passed 8602 | 188 673 223 491 260 1654 1565 584 756 133 727 343 248 757 Spaces Moved 4316 | 101 333 140 287 226 751 809 319 344 86 386 160 97 277 Core 18 | 18 . . . . . . . . . . . . . Treads 3745 | 83 333 140 287 . 743 809 319 344 86 386 160 55 . Legs 319 | . . . . . . . . . . . . 42 277 Wheels 234 | . . . . 226 8 . . . . . . . . Hover . | . . . . . . . . . . . . . . Flight . | . . . . . . . . . . . . . . Fastest Speed 50 | 50 160 160 160 110 110 145 145 151 156 156 159 105 108 Average Speed 152 | 140 160 160 168 110 145 147 145 157 156 158 195 160 168 Slowest Speed 325 | 160 160 160 240 110 225 225 145 238 156 235 239 325 182 Overloaded Moves . | . . . . . . . . . . . . . . Propulsion Burnouts . | . . . . . . . . . . . . . . Robots Hopped . | . . . . . . . . . . . . . . Potential Cave-ins . | . . . . . . . . . . . . . . Cave-ins Triggered . | . . . . . . . . . . . . . . Exploration Rate (%) 44 | 6 54 32 69 49 52 29 55 60 68 49 4 92 8 Regions Visited 13 Branch Regions 7 Pre-discovered Areas 5 | . . 1 1 1 . . 1 . 1 . . . . Known Exits Taken 7 | . 1 . . . . 1 1 1 1 1 1 . . Unknown Exits Taken 5 | 1 . 1 1 1 1 . . . . . . . . Scrap Searched 8 | . . . . . . . 2 4 . 2 . . . Spaces Dug 18 | . . . . . . 9 1 . . . 3 . 5 Terrain Destroyed 312 | . . . . . 16 129 1 21 . . 3 72 70 Melee 18 | . . . . . . 9 1 . . . 3 . 5 Projectile 7 | . . . . . . . . . . . . 1 6 AOE 287 | . . . . . 16 120 . 21 . . . 71 59 Terrain Rammed . | . . . . . . . . . . . . . . Walls Destroyed . | . . . . . . . . . . . . . . Machines Disabled . | . . . . . . . . . . . . . . Actions | -11 -10 -10 -10 -9 -8 -7 -7 -7 -7 -6 -6 -6 -5 --------- Run | Yrd Mat Min Exi Min Mat Fac Low Low Dat Pro Fac DSF Fac Total 5791 | 129 432 139 297 236 1165 1121 436 507 85 435 184 158 467 Wait 774 | . 57 . . 5 217 203 107 88 . 3 . 9 85 Move 4303 | 100 332 139 286 225 750 808 318 343 85 385 159 96 277 Hop . | . . . . . . . . . . . . . . Pick Up 147 | 12 13 . 5 4 43 24 1 10 . 4 7 6 18 Fast Attach 15 | . . . . . 5 5 2 . . . 2 . 1 Attach 84 | 7 1 . . . 19 6 1 13 . 6 3 8 20 Detach 12 | . . . . . 2 1 . 3 . . 1 4 1 Swap 59 | . 1 . 1 2 11 25 3 4 . 1 3 4 4 Drop 78 | . 4 . 5 . 36 18 1 3 . 1 5 3 2 Fire 289 | 10 24 . . . 81 20 2 37 . 34 1 28 52 Melee 22 | . . . . . . 11 1 . . . 3 . 7 Ram . | . . . . . . . . . . . . . . Kick . | . . . . . . . . . . . . . . Crush 1 | . . . . . . . . . . 1 . . . Escape Stasis . | . . . . . . . . . . . . . . Rewire 6 | . . . . . . . . 6 . . . . . Trap 1 | . . . . . 1 . . . . . . . . Miscellaneous . | . . . . . . . . . . . . . . Route ------- -11/Scrapyard -10/Materials (discovered 2 exits: [*Mat] / *Min) -10/Mines (discovered 2 exits: [*Mat] / *Exi) -10/Exiles -9/Mines -8/Materials -7/Factory (discovered 3 exits: *Fac / *Sto / *Low) -7/Lower Caves -7/Lower Caves (discovered 2 exits: Fac / *Dat) -7/Data Miner -6/Proximity Caves -6/Factory (discovered 2 exits: Ext / DSF) -6/DSF -5/Factory History --------- Turn | Location | Event 6 | -11/Scrapyard | Discovered new exit (range 14) 189 | -11/Scrapyard | Entered Materials 307 | -10/Materials | Build established: Mutant 493 | -10/Materials | Identified exit to Mines 624 | -10/Materials | Discovered new exit (range 13) 862 | -10/Materials | Entered Mines 883 | -10/Mines | Met a Derelict bent on vengeance 890 | -10/Mines | Discovered new exit (range 13) 1078 | -10/Mines | Deemed a non-threat by the Exiles lab entrance 1078 | -10/Mines | Discovered new exit (range 5) 1085 | -10/Mines | Entered Exiles 1125 | -10/Exiles | Met 8R-AWN 1151 | -10/Exiles | Met EX-HEX 1226 | -10/Exiles | Met EX-DEC 1257 | -10/Exiles | Learned location of Zion (-6) 1284 | -10/Exiles | Met EX-BIN 1306 | -10/Exiles | Aligned with FarCom system 1308 | -10/Exiles | Given EX-Vault access code 1345 | -10/Exiles | Opened EX-Vault 1355 | -10/Exiles | Found Potential Leg 1358 | -10/Exiles | Found Potential Leg 1400 | -10/Exiles | Warned to stay clear of 0b10 Research branches 1549 | -10/Exiles | Discovered new exit (range 11) 1576 | -10/Exiles | Left Exiles lab with Potential Leg 1576 | -10/Exiles | Entered Mines 1611 | -9/Mines | Found a hidden stash of uninstalled traps 1673 | -9/Mines | Learned location of Recycling (-7) 1673 | -9/Mines | Assisted by bots powering up and referring to "LRC-V3" 1793 | -9/Mines | Found the Drone Emporium 1798 | -9/Mines | Found Prototype Device 1830 | -9/Mines | Discovered new exit (range 5) 1836 | -9/Mines | Entered Materials 1836 | -8/Materials | Accompanied by 3 allies 1836 | -8/Materials | Evolved 4 slots: Propulsion x2, Utility x2 2029 | -8/Materials | Lost 3 allies 2150 | -8/Materials | Identified Splice Drone Bay 2418 | -8/Materials | Lost 3 parts (2u1w) 2938 | -8/Materials | Build established: Skirmisher 2974 | -8/Materials | Garrison activated, responded to threat 3239 | -8/Materials | Build established: Mutant 3410 | -8/Materials | Discovered new exit (range 16) 3490 | -8/Materials | Entered Factory 3490 | -7/Factory | Evolved 2 slots: Utility x2 3509 | -7/Factory | Discovered new exit (range 6) 3517 | -7/Factory | Identified exit to Storage 3745 | -7/Factory | Fabricated Adv. Medium Treads (x2) 4096 | -7/Factory | Build established: Skirmisher 4655 | -7/Factory | Discovered new exit (range 15) 5045 | -7/Factory | Discovered new exit (range 6) 5052 | -7/Factory | Identified exit to Lower Caves 5055 | -7/Factory | Entered Lower Caves 5128 | -7/Lower Caves | Found Alien Artifact 5128 | -7/Lower Caves | Identified Core Expander 5128 | -7/Lower Caves | Installed Core Expander, added new Weapon slot 5359 | -7/Lower Caves | Build established: Mutant 5519 | -7/Lower Caves | Encountered a Warlord checkpoint 5560 | -7/Lower Caves | Learned location of Extension (-6) 5627 | -7/Lower Caves | Discovered new exit (range 10) 5638 | -7/Lower Caves | Identified exit to Lower Caves 5639 | -7/Lower Caves | Entered another Lower Caves area 5658 | -7/Lower Caves | Discovered new exit (range 15) 5847 | -7/Lower Caves | Lost 3 parts (2p1w) 5876 | -7/Lower Caves | Encountered a Warlord checkpoint 5972 | -7/Lower Caves | Spotted B-75 Beast 6073 | -7/Lower Caves | Destroyed B-75 Beast 6087 | -7/Lower Caves | Lost 7 parts (1p3n1u2w) 6106 | -7/Lower Caves | System corruption reached 10% 6371 | -7/Lower Caves | Discovered new exit (range 15) 6392 | -7/Lower Caves | Identified exit to Data Miner 6395 | -7/Lower Caves | Entered Data Miner 6395 | -7/Data Miner | Discovered new exit (range 6) 6415 | -7/Data Miner | Build established: Scavenger-Mutant 6425 | -7/Data Miner | Met Data Miner 6455 | -7/Data Miner | Learned location of Section 7 (-2) 6455 | -7/Data Miner | Acquired the access code to Warlord's prototype stash 6488 | -7/Data Miner | Received God Mode back door access code from Data Miner 6527 | -7/Data Miner | Identified exit to Proximity Caves 6528 | -7/Data Miner | Entered Proximity Caves 6531 | -6/Proximity Caves | Spotter reported a threat 6533 | -6/Proximity Caves | Spotter reported a threat 6584 | -6/Proximity Caves | Spotter reported a threat 6774 | -6/Proximity Caves | Learned Factory emergency access door positions 6833 | -6/Proximity Caves | Spotter reported a threat 6914 | -6/Proximity Caves | Spotter reported a threat 6945 | -6/Proximity Caves | Build established: Scavenger-Tank 6946 | -6/Proximity Caves | Spotter reported a threat 6973 | -6/Proximity Caves | Identified exit to Factory 6991 | -6/Proximity Caves | Spotter reported a threat 7057 | -6/Proximity Caves | Spotter reported a threat 7255 | -6/Proximity Caves | Entered Factory 7255 | -6/Factory | Evolved 2 slots: Propulsion x1, Utility x1 7256 | -6/Factory | Identified exit to Extension 7596 | -6/Factory | Identified exit to DSF 7598 | -6/Factory | Entered DSF 7635 | -6/DSF | Additional patrols routed to DSF 7714 | -6/DSF | Lost 3 parts (1n1u1w) 7768 | -6/DSF | Sterilization system engaged 7781 | -6/DSF | Lost 4 parts (2n1u1w) 7788 | -6/DSF | Ambient heat levels rising (+10) 7803 | -6/DSF | Ambient heat levels rising (+10) 7818 | -6/DSF | Ambient heat levels rising (+10) 7828 | -6/DSF | Discovered new exit (range 14) 7833 | -6/DSF | Ambient heat levels rising (+10) 7844 | -6/DSF | Identified exit to Factory 7846 | -6/DSF | Entered Factory 7846 | -5/Factory | Evolved 2 slots: Power x1, Propulsion x1 8019 | -5/Factory | Build established: Mutant 8276 | -5/Factory | Lost 7 parts (2p2n2u1w) 8446 | -5/Factory | First assault squad dispatched 8474 | -5/Factory | Incoming assault squad redirected 8567 | -5/Factory | Cargo convoy interrupted 8571 | -5/Factory | Build established: Scavenger-Mutant 8587 | -5/Factory | Garrison activated, responded to threat 8597 | -5/Factory | System corruption reached 10% 8599 | -5/Factory | Core integrity fell below 50% 8603 | -5/Factory | Self-destructed Last Messages --------------- 08600_ Splice Drone injecting P-70 Sage... 08600_ Penetrated by Slug. 08600_ Hvy. Machine Gun destroyed. 08601_ Splice Drone released from Splice Drone Bay. 08601_ Splice Drone sneak attacks. 08601_ Splice Drone injecting P-70 Sage... 08601_ Splice Drone retrieved by Splice Drone Bay (repair cost: 2). 08601_ Slug penetrates Splice Drone. 08601_ Penetrated by Slug. 08602_ Slug penetrates Splice Drone. 08602_ P-70 Sage resets I-47 Archangel, system corruption cleaned. 08602_ Splice Drone retrieval failed, bay integrity insufficient for repairs. 08602_ Splice Drone Bay destroyed. 08603_ Penetrated by Slug. 08603_ Enh. Gauss Cannon destroyed. 08603_ >> Lost connection to Splice Drone. Map ----- +----------------------------------------------------+ | [ ! + #?????????????????????? | | %[ = # """"""""" #?????????????????????? | | # #?????????????????????? | | [/ + """"""""" #?????????????????????? | | # #?????????????????????? | | "" """ # ! #?????????????????????? | | """ """ #################????????????????????? | | """ """ ##??###########"#????????????????????? | | "" "" #??# #????????????????????? | | "" "" #???""" """" #????????????????????? | | #??#"R """" #????????????????????? | | """ """ "??#""" """" #????????????????????? | | """ """ "??# "" """" #????????????????????? | | """ """ ?# """" #????????????????????? | | "" "" "F?# """" #????????????????????? | | ?" "" """# #?????#????A?????????? | | ? ##?# #???" #????i?????????? | | "" ? #??# ! #???" +??????????????? | | ""? ? #??# #??"" ????? ????????? | | ""? ? [ ???# #? ???? #????????? | | "??? ##########;############ #????????? | | ""??"" k h u #????????? | | ??T" h #????????? | | ????" =pmph #????????? | | ?????? %nph + ???????? | | ???????? @[%p #????????? | | ???????BB?######+###########h p #????????? | | ???????BB??????????????????? % #????????? | | ???????????????????????????? "%" k ???????? | | ???????????????????????????i " ????????? | | ????????????????????????????? ????????? | | ??+#########????????????????? ????????? | | ? ![ #????????????????? ?????????? | | ? !! #????????????????? ?????????? | | [! #?????????????????g ??????????? | | ! #?????????????????? ??????????? | | *#?????????????????? ????????????? | | [ #?????????????????? ??????????????? | | #??????????????????? ?????????????????? | | """"""" ???????????????????????????????????????? | | """""???????????????????????????????????????????? | | """"????????????????????????????????????????????? | | """"????????????????????????????????????????????? | | ? ????????????????????????????????????????????? | | ?#####???????????????????????????????????????????? | | ?????????????????????????????????????????????????? | | ?????????????????????????????????????????????????? | | ?????????????????????????????????????????????????? | | ?????????????????????????????????????????????????? | | ?????????????????????????????????????????????????? | +----------------------------------------------------+ Best States ------------- Heat Dissipation 64 Energy Generation 23 Energy Capacity 540 Matter Stores 300 Matter Capacity 300 Sight Range 16 Terrain Scan Range 16 Terrain Scan Density 210 Armor Coverage 600 Resistance: KI 30 Resistance: TH 15 Utility Shielding 66 Weapon Shielding 33 Evasion (%) 55 Targeting Accuracy 8 Recoil Reduction 5 Particle Charging 15 Salvage Targeting 2 Offensive Hacking 10 Item Schematics ----------------- Combat Drone Bay | -7/Data Miner | Free Lgt. Regenerative Plating | -7/Data Miner | Free Biomechanical Wings | -7/Data Miner | Free Exp. Propulsion Shielding | -7/Data Miner | Free Imp. Heavy Machine Gun | -7/Data Miner | Free Nuclear Pulse Array | -7/Data Miner | Free Imp. Component Analysis Suite | -7/Data Miner | Free Hvy. Shock Bomb Launcher | -7/Data Miner | Free Lgt. Angular Momentum Engine | -7/Data Miner | Free Field Propulsion Drive | -7/Data Miner | Free Adv. Trap Scanner | -7/Data Miner | Free Adv. Transmission Jammer | -7/Data Miner | Free Robot Schematics ------------------ B-48 Gladiator | -7/Data Miner | Free X-67 Chaingunner | -7/Data Miner | Free A-15 Conveyor | -7/Data Miner | Free H-66 Slayer | -7/Data Miner | Free S-27 Virus | -7/Data Miner | Free Fabricated ------------ Adv. Medium Treads | x2 | -7/Factory | Preloaded Repaired ---------- Nothing Alien Tech Used ----------------- Core Expander Achievements -------------- None Challenges ------------ None Game ------ Seed MultireflexStasisCasing Manual? 0 Play Time 01:12:42 Cumulative 150.3 hours Start 2025.08.16 @ 00:48:55 End 2025.08.16 @ 02:10:06 Sessions 1 Manual Loads 0 Difficulty Rogue Special Mode None Game No. 256 Rogue 256 Adventurer 0 Explorer 0 Win Type - Total 2 Types 1/0/1/0/0/0/0/0/0/0 Lore% 76 Gallery% 71 Achievement% 51 Wizard Run 0 Options --------- Layout 1 ASCII 0 Keyboard 0 Movement Mouse Keybinds 0 Fullscreen 1 Font 24/Smallcaps Map View 50x35 Zoom Use 0% Tactical HUD 1 Map Filters NONE Filters NONE Steam 1 RUN: 2094e84e-9af9-4fdc-8fb2-f3f408139056